Cogmind - Beta 15 @@@ ROGUE MODE // 2025.08.02 @ 15:20:51 Player: the Result: Destroyed by Cetus Guard with Advanced Variable Charge Gun Performance ------------- Evolutions (4) 2000 Regions Visited (14) 2800 Robots Destroyed (148) 740 Value Destroyed (4249) 4249 Prototype IDs (40) 800 Alien Tech Used (0) 0 Bonus (1642) 1642 TOTAL SCORE: 12231 Bonus ------- High Alert Combat Kills 30 Follower Combat Kills 1012 Aligned with FarCom 300 Met Data Miner 300 Cogmind --------- Core Integrity 0/850 Matter 286/300 Energy 30/100 System Corruption 23% Temperature Cool (9) Movement Treading (160) Location -6/Cetus Parts ------- > --- POWER (1) -------- (None) > --- PROPULSION (4) --- Centrium Heavy Treads > --- UTILITY (6) ------ High-capacity Storage Unit Enhanced Optical Array Advanced Signal Interpreter Advanced Melee Analysis Suite > --- WEAPON (4) ------- Power Sword Phasing Sabre Phasing Sabre > --- INVENTORY (20) --- Reinforced Deuterium Engine Cold Fusion Reactor Quantum Reactor Quantum Reactor Improved Cooling System Advanced Signal Interpreter IFF Parser Drone Bay (2/2) Advanced Variable Charge Gun XL Autogun Array Proton Missile Launcher Power Sword Peak State ------------ > --- POWER ------------ Quantum Reactor > --- PROPULSION ------- Centrium Heavy Treads Carbon-fiber Leg Carbon-fiber Leg > --- UTILITY ---------- High-capacity Storage Unit Enhanced Optical Array Advanced Signal Interpreter Advanced Melee Analysis Suite Microactuators Light Regenerative Plating > --- WEAPON ----------- Advanced Variable Charge Gun Phasing Sabre Phasing Sabre Phasing Sabre > --- INVENTORY -------- Reinforced Deuterium Engine Fission Core Cold Fusion Reactor Quantum Reactor Carbon-fiber Leg Carbon-fiber Leg Carbon-fiber Leg Improved Cooling System Advanced Signal Interpreter IFF Parser Centrium Medium Armor Plating Drone Bay XL Autogun Array Proton Missile Launcher Power Sword Power Sword Phasing Sabre [Rating: 96] Favorites ----------- Power Cooled Ion Engine Engine Cooled Ion Engine Power Core Light Nuclear Core Reactor Cold Fusion Reactor Propulsion Armored Huge Wheel Treads Light Treads Leg Improved Titanium Leg Wheel Armored Huge Wheel Utility High-capacity Storage Unit Device Microactuators Storage High-capacity Storage Unit Processor Advanced Signal Interpreter Protection Improved Medium Armor Plating Weapon Great Axe Energy Gun Medium Laser Energy Cannon Heavy Plasma Cannon Ballistic Gun Shotgun Ballistic Cannon Assault Cannon Launcher Proton Missile Launcher Special Weapon Mining Laser Impact Weapon Heavy Mace Slashing Weapon Great Axe Build | -11 -10 -9 -9 -9 -8 -8 -7 -7 -7 -7 -6 -6 -6 -6 ------- Run | Yrd Mat Mat Min Exi Min Mat Fac Low Low Dat Pro Fac Ext Cet Slots Evolved 8 | . . 2 . . . 2 2 . . . . 2 . . Power . | . . . . . . . . . . . . . . . Propulsion 2 | . . 1 . . . . 1 . . . . . . . Utility 4 | . . 1 . . . . 1 . . . . 2 . . Weapon 2 | . . . . . . 2 . . . . . . . . Parts Attached 134 | 9 15 9 . . 3 19 24 1 2 . 5 15 22 10 Power 15 | 1 1 2 . . 2 2 1 . . . . 2 2 2 Engine 5 | 1 1 1 . . . 1 . . . . . 1 . . Core 8 | . . 1 . . 2 1 1 . . . . . 2 1 Reactor 2 | . . . . . . . . . . . . 1 . 1 Propulsion 38 | 2 3 3 . . . 5 4 . . . 3 5 8 5 Treads 8 | . . . . . . 5 1 . . . . . . 2 Leg 26 | 2 3 3 . . . . . . . . 3 4 8 3 Wheel 4 | . . . . . . . 3 . . . . 1 . . Hover . | . . . . . . . . . . . . . . . Flight . | . . . . . . . . . . . . . . . Utility 38 | 4 3 1 . . 1 3 12 1 1 . 1 7 3 1 Device 17 | 3 1 . . . . 1 8 1 . . 1 1 1 . Storage 4 | 1 2 . . . . 1 . . . . . . . . Processor 9 | . . 1 . . . 1 3 . . . . 4 . . Hackware . | . . . . . . . . . . . . . . . Protection 8 | . . . . . 1 . 1 . 1 . . 2 2 1 Artifact . | . . . . . . . . . . . . . . . Weapon 43 | 2 8 3 . . . 9 7 . 1 . 1 1 9 2 Energy Gun 9 | . 5 1 . . . . 2 . . . . . . 1 Energy Cannon 1 | . . . . . . . . . . . . . 1 . Ballistic Gun 6 | 2 . 2 . . . 1 . . . . . . 1 . Ballistic Cannon 3 | . . . . . . 3 . . . . . . . . Launcher 2 | . 1 . . . . . . . 1 . . . . . Special Weapon 2 | . 2 . . . . . . . . . . . . . Impact Weapon 4 | . . . . . . . 2 . . . 1 1 . . Slashing Weapon 16 | . . . . . . 5 3 . . . . . 7 1 Piercing Weapon . | . . . . . . . . . . . . . . . Special Melee Weapon . | . . . . . . . . . . . . . . . Unidentified Prototypes 7 | . . . . . . 1 2 . . . . 1 . 3 Corrupted Parts 4 | . . . . . . . . . . . 3 . . 1 System Corruption 21 | . . . . . . . . . . . 11 . . 10 Parts Lost 36 | . 3 . . . . 3 . . 1 . 1 8 6 14 Power 3 | . 1 . . . . . . . . . . 1 . 1 Propulsion 16 | . 2 . . . . 2 . . . . . 1 4 7 Utility 9 | . . . . . . 1 . . . . 1 4 . 3 Weapon 8 | . . . . . . . . . 1 . . 2 2 3 Highest Loss Streak 13 | . 2 . . . . 3 . . 1 . 1 4 3 13 To Critical Strikes 3 | . . . . . . . . . . . . . . 3 Average Backups 14 | 2 8 14 15 13 12 14 14 15 14 15 14 14 16 16 Power 1 | . 1 1 1 1 1 2 1 . 1 1 1 1 3 4 Propulsion 3 | . . 3 4 4 3 2 2 4 4 6 6 5 2 2 Utility 4 | . 1 2 2 2 2 4 6 7 5 5 5 4 4 4 Weapon 4 | 1 5 8 8 6 5 5 3 3 3 3 2 3 5 4 Tool/Special . | . . . . . . . . . . . . . . . Unused Backups 38 | 2 1 1 . 1 . 8 11 . . . . 1 5 8 Power 9 | . . . . . . . 1 . . . . 1 3 4 Propulsion 5 | . . . . . . 1 3 . . . . . 1 . Utility 10 | . . . . . . 1 5 . . . . . 1 3 Weapon 14 | 2 1 1 . 1 . 6 2 . . . . . . 1 Tool/Special . | . . . . . . . . . . . . . . . Average Slot Usage (%) 86 | . 99 88 100 100 100 66 85 76 79 84 83 80 95 94 Engine 4 | . 13 10 . . . . 3 7 7 7 7 3 . . Core 2 | . . . 11 11 11 8 3 . . . . . 4 3 Treads 3 | . . . . . . 21 7 . . . . . . . Leg 11 | . 28 33 33 33 33 4 . . . . . 7 25 23 Wheel 7 | . . . . . . . 11 15 15 15 14 9 . . Device 8 | . 14 11 11 11 11 5 14 7 7 7 7 4 2 5 Storage 7 | . 14 11 11 11 11 9 7 7 7 7 7 6 6 6 Processor 8 | . . . 11 11 2 1 . 7 7 7 7 15 20 20 Protection 5 | . . . . . 8 . 6 7 7 7 6 5 6 6 Energy Gun 1 | . 22 7 . . . . . . . . . . . 1 Ballistic Gun 2 | . 3 11 22 22 22 7 . . . . . . . . Ballistic Cannon 2 | . . . . . . 2 9 . . . . . . . Impact Weapon 5 | . . . . . . . 3 . 7 15 15 12 4 . Slashing Weapon 13 | . . . . . . 4 15 23 18 15 15 11 20 23 Peak Build Rating 96 | 7 8 18 18 21 21 53 57 56 55 53 55 70 84 96 Average Rating 52 | 6 7 12 18 19 20 45 52 55 53 53 53 63 79 82 On Entrance 35 | . 7 8 18 18 21 20 31 55 55 53 53 54 62 82 Naked Turns . | . . . . . . . . . . . . . . . Heaviest Build 83 | 11 31 34 34 34 35 63 76 70 74 70 70 81 82 83 Greatest Support 85 | 20 20 39 39 39 39 62 82 56 56 56 56 76 85 80 Greatest Overweight (x) 4 | . 1 . . . . 3 2 1 1 1 2 2 1 4 Average Overweight (x) . | . . . . . . . . 1 1 1 1 . . . Largest Inventory Capacity 20 | 8 15 15 15 15 15 20 20 20 20 20 20 20 20 20 Average Capacity 18 | 7 9 15 15 15 15 19 20 20 20 20 20 20 20 20 Most Carried 20 | 5 13 15 15 15 15 20 20 20 20 20 20 20 20 20 Average Carried 17 | 2 8 14 15 14 14 15 19 19 19 20 19 18 19 19 Final Capacity 20 | 8 15 15 15 15 15 20 20 20 20 20 20 20 20 20 Final Carried 20 | 4 13 15 15 15 15 19 20 20 20 20 20 16 20 15 Class Distribution -------------------- 41% | Mutant 25% | Gladiator 16% | Commander-Gladiator 10% | Skirmisher 3% | Scavenger-Mutant Dominant Class ---------------- Mutant | -10/Materials Mutant | -9/Materials Mutant | -9/Mines Mutant | -9/Exiles Scavenger-Mutant | -8/Mines Skirmisher | -8/Materials Gladiator | -7/Factory Mutant | -7/Lower Caves Mutant | -7/Lower Caves Mutant | -7/Data Miner Mutant | -6/Proximity Caves Gladiator | -6/Factory Commander-Gladiator | -6/Extension Commander-Gladiator | -6/Cetus Resources | -11 -10 -9 -9 -9 -8 -8 -7 -7 -7 -7 -6 -6 -6 -6 ----------- Run | Yrd Mat Mat Min Exi Min Mat Fac Low Low Dat Pro Fac Ext Cet Matter Collected 4329 | 316 196 194 31 . 100 1528 604 90 156 . 33 497 464 120 Remotely 1318 | 87 . . . . . 1045 186 . . . . . . . Salvage Created 6422 | 165 502 246 31 . 155 1458 812 336 374 . 185 904 1254 . Parts 281 | 17 35 12 5 . 8 77 41 7 16 . 3 29 31 . Haulers Intercepted 12 | . 1 1 . . . 4 3 . . . . . 3 . Recyclers Shooed 4 | . 3 1 . . . . . . . . . . . . Parts Field Recycled . | . . . . . . . . . . . . . . . Retrieved Matter . | . . . . . . . . . . . . . . . Parts Self-Destructed 10 | . . . . . . . . 5 4 . 1 . . . Prevented 5 | . . . . . . . . . 5 . . . . . Kills | -11 -10 -9 -9 -9 -8 -8 -7 -7 -7 -7 -6 -6 -6 -6 ------- Run | Yrd Mat Mat Min Exi Min Mat Fac Low Low Dat Pro Fac Ext Cet Combat Hostiles Destroyed 91 | . 13 2 3 . 3 24 8 1 4 . 1 19 13 . Melee 30 | . . . . . . . 5 1 1 . . 14 9 . Guns 41 | . 10 2 3 . 3 23 . . . . . . . . Cannons 4 | . . . . . . 1 3 . . . . . . . AOE 4 | . 3 . . . . . . . 1 . . . . . Classes Destroyed 17 | 2 5 1 . . 1 5 1 1 . . . . 1 . Worker 11 | . 2 . . . . 1 3 . . . . 4 1 . Builder 12 | . . . . . . 2 3 . . . . 6 1 . Tunneler 4 | 4 . . . . . . . . . . . . . . Hauler 12 | . 1 1 . . . 4 3 . . . . . 3 . Recycler 7 | 1 1 1 . . . 1 2 . . . . . 1 . Mechanic 3 | . . . . . . 1 2 . . . . . . . Operator 1 | . . . . . . 1 . . . . . . . . Watcher 7 | . 2 . . . . 2 1 . . . . 1 1 . Swarmer 26 | . 9 . 3 . . 7 . . . . . 7 . . Grunt 30 | . 4 . . . 2 10 2 . 2 . 1 3 6 . Brawler 2 | . . . . . 1 . . . . . . 1 . . Duelist 4 | . . . . . . 1 . . 2 . . 1 . . Sentry 17 | . . 2 . . . 5 1 1 . . . 2 6 . Hunter 1 | . . . . . . 1 . . . . . . . . Programmer 10 | . . . . . . . 5 . . . . 5 . . Behemoth 1 | . . . . . . . . . . . . . 1 . Samaritan 3 | . . . . . . . . 1 2 . . . . . Best Kill Streak 10 | 2 5 2 3 . 3 10 2 1 3 . 1 8 2 . Combat Bots Only 7 | . 3 1 3 . 3 7 2 1 3 . 1 7 2 . Max Kills in Single Turn 3 | 1 3 1 1 . 1 2 1 1 1 . 1 2 1 . Gunslinging 1 | . 1 . . . . . . . . . . . . . Exploded 2 | . 2 . . . . . . . 1 . . . . . Melee 2 | . . . . . . . 1 1 1 . . 2 1 . Uniques/NPCs Destroyed . | . . . . . . . . . . . . . . . Combat | -11 -10 -9 -9 -9 -8 -8 -7 -7 -7 -7 -6 -6 -6 -6 -------- Run | Yrd Mat Mat Min Exi Min Mat Fac Low Low Dat Pro Fac Ext Cet Hostile Shots Fired 851 | . 65 19 12 . 16 48 42 39 37 . 3 332 127 111 Missed 262 | . 20 6 6 . 4 10 14 12 12 . . 105 45 28 Hits 589 | . 45 13 6 . 12 38 28 27 25 . 3 227 82 83 Melee 11 | . . . . . 2 . . . . . . 9 . . Projectile 578 | . 45 13 6 . 10 38 28 27 25 . 3 218 82 83 Critical Strikes 20 | . 1 1 . . 2 . 2 . . . . 3 1 10 Part Disruptions 2 | . . . . . . . . . . . . 2 . . Damage Taken 8555 | . 487 168 53 . 198 468 395 187 370 . 55 2716 1016 2442 Core 1294 | . 89 43 36 . 43 120 16 42 15 . 19 350 125 396 Absorbed by Shields 90 | . . . . . . . . . . . . 90 . . Regen/Repaired (Parts) 671 | . . . . . . . 169 . . . . 204 194 104 Core Remaining (%) 79 | 100 64 . . . 69 78 . . . . 86 . . . Volleys Fired 217 | 13 73 28 5 . 7 57 18 . 12 . . . 4 . Largest 3 | 2 2 2 2 . 2 3 3 . 1 . . . 1 . Hottest 150 | 40 150 100 46 . 46 111 111 . 39 . . . 90 . Shots Fired 343 | 26 132 40 10 . 14 65 39 . 13 . . . 4 . Gun 254 | 26 121 24 10 . 14 53 6 . . . . . . . Cannon 49 | . . . . . . 12 33 . . . . . 4 . Launcher 15 | . 2 . . . . . . . 13 . . . . . Special 25 | . 9 16 . . . . . . . . . . . . Kinetic 182 | 26 16 18 10 . 14 65 33 . . . . . . . Thermal 146 | . 114 22 . . . . 6 . . . . . 4 . Explosive 2 | . 2 . . . . . . . . . . . . . Electromagnetic 13 | . . . . . . . . . 13 . . . . . Robot Hit Streak 13 | 4 8 5 4 . 3 13 10 . 4 . . . . . Robot Miss Streak 5 | 3 5 4 5 . 3 4 3 . 2 . . . . . Penetration Max . | . . . . . . . . . . . . . . . Secondary Targets 5 | . 3 . . . 2 . . . . . . . . . Max Gunslinging Chain 1 | . 1 . . . 1 . . . . . . . . . Shots Hit Robots 369 | 14 60 16 6 . 11 55 52 12 10 . 7 70 46 10 Core Hits 176 | 10 31 9 3 . 8 49 16 3 8 . 2 17 14 6 Critical Kills 2 | . . . . . . . . . . . . 2 . . Critical Parts Destroyed 13 | . . . . . . . . . . . 1 6 6 . Critical Strikes 32 | . 5 . . . . 1 2 1 . . 2 8 11 2 Burn 5 | . 5 . . . . . . . . . . . . . Blast 2 | . . . . . . . 2 . . . . . . . Smash 15 | . . . . . . . . . . . 1 8 6 . Sever 10 | . . . . . . 1 . 1 . . 1 . 5 2 Melee Attacks 486 | . . . . . . 18 110 26 28 . 18 159 107 20 Impact 165 | . . . . . . . 24 . 10 . 6 100 25 . Slashing 321 | . . . . . . 18 86 26 18 . 12 59 82 20 Piercing . | . . . . . . . . . . . . . . . Sneak Attacks 40 | . . . . . . . 12 1 2 . 1 9 15 . Combat Hostiles 5 | . . . . . . . . . . . . . 5 . Follow-up Attacks 54 | . . . . . . 2 6 2 1 . 1 24 15 3 Damage Inflicted 15056 | 110 885 220 91 . 149 2662 2417 830 639 . 444 3528 2634 447 Guns 3924 | 110 710 220 91 . 149 2418 226 . . . . . . . Cannons 572 | . . . . . . 149 423 . . . . . . . Explosions 526 | . 175 . . . . . . . 351 . . . . . Melee 10034 | . . . . . . 95 1768 830 288 . 444 3528 2634 447 Ramming . | . . . . . . . . . . . . . . . Kinetic 3599 | 110 77 182 91 . 149 2567 423 . . . . . . . Thermal 897 | . 633 38 . . . . 226 . . . . . . . Explosive 175 | . 175 . . . . . . . . . . . . . Electromagnetic 351 | . . . . . . . . . 351 . . . . . Impact 4308 | . . . . . . . 449 . 26 . 153 2638 1042 . Slashing 5726 | . . . . . . 95 1319 830 262 . 291 890 1592 447 Piercing . | . . . . . . . . . . . . . . . Highest Corruption 23 | . . . . . . . 5 1 1 1 12 13 13 23 Average Corruption 6 | . . . . . . . 2 1 1 1 1 7 13 13 Corruption Purged 5 | . . . . . . . 5 . . . . . . . Corruption Blocked . | . . . . . . . . . . . . . . . Effects 215 | . . . . . . . 23 7 10 . 8 51 101 15 Message Errors 58 | . . . . . . . 7 2 2 . 2 10 30 5 Matter Fused 53 | . . . . . . . 6 1 4 . 1 16 21 4 Heat Flow Errors 24 | . . . . . . . 1 2 1 . 1 3 13 3 Energy Discharges 25 | . . . . . . . 3 2 1 . 2 7 10 . Parts Rejected 1 | . . . . . . . . . . . . 1 . . Parts Fused 4 | . . . . . . . . . . . . 2 2 . Data Loss (minor) 32 | . . . . . . . 4 . 1 . 1 8 16 2 Data Loss (major) 9 | . . . . . . . 1 . . . . 2 6 . Misfires 2 | . . . . . . . 1 . 1 . . . . . Alerts 4 | . . . . . . . . . . . 1 1 2 . Misdirections 3 | . . . . . . . . . . . . 1 1 1 Overload Shots 6 | . . . . . . . 6 . . . . . . . Overflow Damage 2656 | . 13 . . . . 2 492 270 65 . 117 1035 662 . Projectiles 17 | . . . . . . 2 . . . . . 15 . . Explosions 26 | . 13 . . . . . . . 13 . . . . . Melee 2613 | . . . . . . . 492 270 52 . 117 1020 662 . Knockbacks 22 | . . . . . . . 5 . . . 2 6 9 . Impact 16 | . . . . . . . 1 . . . 2 5 8 . Kinetic 4 | . . . . . . . 4 . . . . . . . Secondary 2 | . . . . . . . . . . . . 1 1 . Self-Inflicted Damage 47 | . 47 . . . . . . . . . . . . . Shots 1 | . 1 . . . . . . . . . . . . . Rammed . | . . . . . . . . . . . . . . . Targets Rammed . | . . . . . . . . . . . . . . . Kicked . | . . . . . . . . . . . . . . . Crushed . | . . . . . . . . . . . . . . . Highest Temperature 330 | . 273 90 . . 39 330 105 236 187 . 89 245 279 162 Average Temperature 83 | . 93 19 . . 24 83 53 101 75 . 45 106 104 76 Received Heat Transfer 1800 | . 120 93 . . 108 81 57 48 . . 27 525 345 396 Effects 2 | . 1 . . . . 1 . . . . . . . . Interference 1 | . 1 . . . . . . . . . . . . . Short Circuit 1 | . . . . . . 1 . . . . . . . . Siege Activations . | . . . . . . . . . . . . . . . Martial Activations . | . . . . . . . . . . . . . . . Shielding Activations . | . . . . . . . . . . . . . . . Robots Disrupted . | . . . . . . . . . . . . . . . Combat Hostiles . | . . . . . . . . . . . . . . . Robots Corrupted 18 | . . . . . . . 1 . 2 . 1 9 5 . Combat Hostiles 12 | . . . . . . . . . 2 . 1 5 4 . Parts Fried 29 | . . . . . . . 5 . 6 . . 14 4 . Impact Corruptions 66 | . . . . . . . 7 . . . 2 44 13 . Robots Melted . | . . . . . . . . . . . . . . . Combat Hostiles . | . . . . . . . . . . . . . . . Parts Melted 11 | . 11 . . . . . . . . . . . . . Heat Transferred 2668 | . 2257 111 . . . . 300 . . . . . . . Parts Sabotaged . | . . . . . . . . . . . . . . . Parts Stolen . | . . . . . . . . . . . . . . . Parts Stripped . | . . . . . . . . . . . . . . . Power Chain Reactions . | . . . . . . . . . . . . . . . Alert | -11 -10 -9 -9 -9 -8 -8 -7 -7 -7 -7 -6 -6 -6 -6 ------- Run | Yrd Mat Mat Min Exi Min Mat Fac Low Low Dat Pro Fac Ext Cet Maximum Alert Level 2 | . . . . . . 2 1 . . . . . 1 1 Low Security (%) 85 | 100 100 100 100 . 100 63 98 . . . . 100 51 96 Level 1 13 | . . . . . . 24 1 . . . . . 48 3 Level 2 1 | . . . . . . 11 . . . . . . . . Level 3 . | . . . . . . . . . . . . . . . Level 4 . | . . . . . . . . . . . . . . . Level 5 . | . . . . . . . . . . . . . . . High Security . | . . . . . . . . . . . . . . . Max Security . | . . . . . . . . . . . . . . . Peak Influence 487 | 5 120 35 60 . 70 487 218 . . . . 182 378 208 Initial 218 | . . 9 . . . . 218 . . . . . 61 208 Average 103 | 1 45 4 39 . 31 205 57 . . . . 80 196 134 Influence Increases 4431 | 25 373 90 70 . 70 855 497 30 215 . 25 727 1228 226 Destroy 0b10 Robot/C 2280 | . 260 40 60 . 60 480 160 20 80 . 20 380 600 120 Destroy 0b10 Robot/NC 340 | 25 30 10 . . . 60 70 10 5 . 5 55 60 10 Destroy Leader 446 | . 56 22 10 . 10 122 78 . 10 . . 102 36 . Allied During Kill 397 | . . . . . . . . . . . . . 341 56 Successful Hack 142 | . 5 5 . . . 17 41 . . . . 5 44 25 Disable Machine 270 | . . . . . . 75 105 . . . . 30 60 . Destroy Structure 196 | . 22 13 . . . 41 43 . . . . 35 27 15 Partial Spotted 15 | . . . . . . . . . . . . 15 . . Lose Combat Pursuer 345 | . . . . . . 60 . . 120 . . 105 60 . Influence Decreases 4410 | 25 350 113 30 40 70 374 832 176 215 . 25 600 983 577 Entered New Map 602 | . . 14 . 40 . . 263 55 . . . . 66 164 Time Decay 2954 | 25 330 99 30 . 70 348 569 121 215 . 25 363 606 153 Lost Part 246 | . 20 . . . . 26 . . . . . 80 40 80 Lost Ally 461 | . . . . . . . . . . . . 10 271 180 Purge Threat 147 | . . . . . . . . . . . . 147 . . Squads Dispatched 28 | . 3 1 . . . 2 9 . . . . 12 1 . Investigation 10 | . 2 . . . . 1 3 . . . . 4 . . Extermination 11 | . . . . . . . 6 . . . . 5 . . Reinforcement 4 | . 1 1 . . . 1 . . . . . . 1 . Assault . | . . . . . . . . . . . . . . . Garrison 3 | . . . . . . . . . . . . 3 . . Intercept . | . . . . . . . . . . . . . . . Searches Triggered . | . . . . . . . . . . . . . . . Data Miner Redirects 1 | . . . . . . . . . . . . 1 . . Construction Impeded . | . . . . . . . . . . . . . . . Haulers Reinforced . | . . . . . . . . . . . . . . . Active Scanning Responses . | . . . . . . . . . . . . . . . Cargo Convoy Interrupts . | . . . . . . . . . . . . . . . Stealth | -11 -10 -9 -9 -9 -8 -8 -7 -7 -7 -7 -6 -6 -6 -6 --------- Run | Yrd Mat Mat Min Exi Min Mat Fac Low Low Dat Pro Fac Ext Cet Distress Signals 9 | . 1 3 . . . 3 . . . . . 1 . 1 Communications Jammed . | . . . . . . . . . . . . . . . Distress Signals . | . . . . . . . . . . . . . . . Times Spotted 172 | . 24 14 3 . 3 29 14 1 11 . 1 32 30 10 Peak Tracking Total 9 | . 3 9 3 . 3 7 2 1 7 . 1 9 4 5 Tactical Retreats 14 | . . . . . . 2 . . 4 . . 4 4 . Traps | -11 -10 -9 -9 -9 -8 -8 -7 -7 -7 -7 -6 -6 -6 -6 ------- Run | Yrd Mat Mat Min Exi Min Mat Fac Low Low Dat Pro Fac Ext Cet Traps Triggered 7 | . 2 . . . . 1 . . . . . 3 1 . Indirectly . | . . . . . . . . . . . . . . . Trap Hack Attempts . | . . . . . . . . . . . . . . . Triggered . | . . . . . . . . . . . . . . . Disarmed . | . . . . . . . . . . . . . . . Reprogrammed . | . . . . . . . . . . . . . . . Reused . | . . . . . . . . . . . . . . . Traps Extracted . | . . . . . . . . . . . . . . . Installed . | . . . . . . . . . . . . . . . Triggered . | . . . . . . . . . . . . . . . Machines | -11 -10 -9 -9 -9 -8 -8 -7 -7 -7 -7 -6 -6 -6 -6 ---------- Run | Yrd Mat Mat Min Exi Min Mat Fac Low Low Dat Pro Fac Ext Cet Machines Disabled 20 | . . . . . . 5 7 . . . . 2 6 . Max in Single Turn 2 | . . . . . . 2 1 . . . . 1 1 . Machines Repaired . | . . . . . . . . . . . . . . . Machines Dismantled . | . . . . . . . . . . . . . . . Machines Sabotaged . | . . . . . . . . . . . . . . . Overloaded Fab Kills . | . . . . . . . . . . . . . . . Hacking | -11 -10 -9 -9 -9 -8 -8 -7 -7 -7 -7 -6 -6 -6 -6 --------- Run | Yrd Mat Mat Min Exi Min Mat Fac Low Low Dat Pro Fac Ext Cet Machines Accessed 61 | . 2 4 . 2 . 6 20 . . 4 . 15 6 2 Terminals 25 | . 1 3 . . . 3 6 . . . . 5 5 2 Fabricators 6 | . . . . . . . 4 . . . . 2 . . Repair Stations 2 | . . . . . . . 2 . . . . . . . Recycling Units 12 | . 1 1 . . . 1 4 . . . . 4 1 . Scanalyzers 7 | . . . . . . 2 3 . . . . 2 . . Garrison Access 3 | . . . . . . . 1 . . . . 2 . . Total Hacks 160 | . 5 8 . 2 . 15 42 . . 34 . 35 14 5 Successful 91 | . 1 3 . 2 . 10 20 . . 34 . 12 5 4 Failed 69 | . 4 5 . . . 5 22 . . . . 23 9 1 Catastrophic 22 | . 2 2 . . . 1 8 . . . . 5 4 . Database Lockouts . | . . . . . . . . . . . . . . . Manual 36 | . 2 3 . 1 . 5 8 . . . . 5 12 . Terminals 57 | . 3 7 . . . 8 11 . . . . 11 12 5 Fabricators 13 | . . . . . . . 8 . . . . 5 . . Repair Stations 5 | . . . . . . . 5 . . . . . . . Recycling Units 21 | . 2 1 . . . 1 6 . . . . 9 2 . Scanalyzers 22 | . . . . . . 6 11 . . . . 5 . . Garrison Access 6 | . . . . . . . 1 . . . . 5 . . Terminal Hacks 49 | . 1 2 . 2 . 2 1 . . 34 . 1 2 4 Record 15 | . . . . 1 . . . . . 11 . . . 3 Part Schematic 14 | . . . . . . . 1 . . 13 . . . . Robot Schematic 7 | . . . . . . . . . . 7 . . . . Robot Analysis 2 | . 1 1 . . . . . . . . . . . . Prototype ID Bank 3 | . . . . . . . . . . 3 . . . . Open Door 1 | . . . . . . . . . . . . . . 1 Branch Access Points 2 | . . 1 . . . 1 . . . . . . . . Alert Level 1 | . . . . . . . . . . . . . 1 . Unreport Threat 1 | . . . . . . . . . . . . 1 . . Zone Layout 2 | . . . . . . 1 . . . . . . 1 . Proto ID Catalog 1 | . . . . 1 . . . . . . . . . . Fabricator Hacks 7 | . . . . . . . 4 . . . . 3 . . Network Status 3 | . . . . . . . 3 . . . . . . . Load Schematic 3 | . . . . . . . 1 . . . . 2 . . Build 1 | . . . . . . . . . . . . 1 . . Repair Station Hacks 4 | . . . . . . . 4 . . . . . . . Scan Component 2 | . . . . . . . 2 . . . . . . . Repair 2 | . . . . . . . 2 . . . . . . . Recycling Unit Hacks 5 | . . . . . . 1 1 . . . . 3 . . Retrieve Components 5 | . . . . . . 1 1 . . . . 3 . . Scanalyzer 19 | . . . . . . 5 10 . . . . 4 . . Insert Component 11 | . . . . . . 3 6 . . . . 2 . . Analyze 8 | . . . . . . 2 4 . . . . 2 . . Garrison Access Hacks . | . . . . . . . . . . . . . . . Unauthorized Hacks 7 | . . 1 . . . 2 . . . . . 1 3 . Terminals 7 | . . 1 . . . 2 . . . . . 1 3 . Assimilate 3 | . . . . . . . . . . . . . 3 . Botnet 3 | . . 1 . . . 1 . . . . . 1 . . Operators 1 | . . . . . . 1 . . . . . . . . Fabricators . | . . . . . . . . . . . . . . . Repair Stations . | . . . . . . . . . . . . . . . Recycling Units . | . . . . . . . . . . . . . . . Scanalyzers . | . . . . . . . . . . . . . . . Garrison Access . | . . . . . . . . . . . . . . . Data Cores Recovered . | . . . . . . . . . . . . . . . Used . | . . . . . . . . . . . . . . . Hacking Detections 49 | . 2 4 . . . 6 16 . . . . 14 6 1 Full Trace Events 7 | . . . . . . . 3 . . . . 4 . . Feedback Events . | . . . . . . . . . . . . . . . Feedback Blocked . | . . . . . . . . . . . . . . . Robot Schematics Acquired 7 | . . . . . . . . . . 7 . . . . Robots Built . | . . . . . . . . . . . . . . . Authchips . | . . . . . . . . . . . . . . . Time . | . . . . . . . . . . . . . . . Total Robot Build Rating . | . . . . . . . . . . . . . . . Part Schematics Acquired 22 | . . . . . . 2 5 . . 13 . 2 . . Parts Built 1 | . . . . . . . . . . . . 1 . . Authchips . | . . . . . . . . . . . . . . . Time 152 | . . . . . . . . . . . . 152 . . Total Part Build Rating 5 | . . . . . . . . . . . . 5 . . Parts Repaired 2 | . . . . . . . 2 . . . . . . . Time 70 | . . . . . . . 70 . . . . . . . Parts Recycled . | . . . . . . . . . . . . . . . Recycled Matter . | . . . . . . . . . . . . . . . Retrieved Matter . | . . . . . . . . . . . . . . . Retrieved Components 13 | . . . . . . 5 6 . . . . 2 . . Parts Scanalyzed 8 | . . . . . . 2 4 . . . . 2 . . Part Schematics Acquired 8 | . . . . . . 2 4 . . . . 2 . . Parts Damaged . | . . . . . . . . . . . . . . . Bothacking | -11 -10 -9 -9 -9 -8 -8 -7 -7 -7 -7 -6 -6 -6 -6 ------------ Run | Yrd Mat Mat Min Exi Min Mat Fac Low Low Dat Pro Fac Ext Cet Used RIF Installer . | . . . . . . . . . . . . . . . Robots Hacked . | . . . . . . . . . . . . . . . Non-combat . | . . . . . . . . . . . . . . . Combat . | . . . . . . . . . . . . . . . Robot Hacks Applied . | . . . . . . . . . . . . . . . Relay Couplers Released . | . . . . . . . . . . . . . . . Fabnet Peak Effective % . | . . . . . . . . . . . . . . . Robots Rewired 28 | . . . . . . . . . . . . 1 27 . Allies Hacked . | . . . . . . . . . . . . . . . Hacks Repelled . | . . . . . . . . . . . . . . . Allies | -11 -10 -9 -9 -9 -8 -8 -7 -7 -7 -7 -6 -6 -6 -6 -------- Run | Yrd Mat Mat Min Exi Min Mat Fac Low Low Dat Pro Fac Ext Cet Total Allies 32 | . . . . . . . . . . . . 1 31 . Largest Group 13 | . . . . . . . . . . . . 1 13 12 Highest-Rated Group 374 | . . . . . . . . . . . . 40 374 341 Highest-Rated Ally 40 | . . . . . . . . . . . . 40 39 39 Total Orders . | . . . . . . . . . . . . . . . Ally Attacks 266 | . . . . . . . . . . . . . 196 70 Total Damage 4822 | . . . . . . . . . . . . . 3532 1290 Kills 32 | . . . . . . . . . . . . . 24 8 Allies Corrupted . | . . . . . . . . . . . . . . . Allies Melted 1 | . . . . . . . . . . . . . 1 . Intel | -11 -10 -9 -9 -9 -8 -8 -7 -7 -7 -7 -6 -6 -6 -6 ------- Run | Yrd Mat Mat Min Exi Min Mat Fac Low Low Dat Pro Fac Ext Cet Active Infowar (turns) 11943 | 103 947 648 73 299 154 130 1828 701 1462 113 726 1918 2488 353 Optics 4868 | . . 42 73 299 35 . . . . . . 1578 2488 353 Sensors 3007 | . . . . . . . 2 701 1462 113 726 3 . . IFF 35 | . . . . . . . . . . . 34 . 1 . Seismic 2354 | 103 947 648 73 299 154 130 . . . . . . . . Jamming 2996 | . . . . . . . 1826 . . . . 1170 . . Robot Analysis Total 2 | . 1 1 . . . . . . . . . . . . Derelict Logs Recovered 7 | . . . 1 . . . . 2 2 . 2 . . . Drone Launches . | . . . . . . . . . . . . . . . Drone Recoveries . | . . . . . . . . . . . . . . . Exploration | -11 -10 -9 -9 -9 -8 -8 -7 -7 -7 -7 -6 -6 -6 -6 ------------- Run | Yrd Mat Mat Min Exi Min Mat Fac Low Low Dat Pro Fac Ext Cet Turns Passed 14064 | 161 947 648 73 299 154 928 3075 719 1462 113 726 1918 2488 353 Spaces Moved 8666 | 89 510 389 42 247 104 426 2018 562 1166 99 577 1120 1136 181 Core 2 | 2 . . . . . . . . . . . . . . Treads 748 | . . . . . . 354 389 . . . . . . 5 Legs 3039 | 87 510 389 42 247 104 72 . . . . . 276 1136 176 Wheels 4877 | . . . . . . . 1629 562 1166 99 577 844 . . Hover . | . . . . . . . . . . . . . . . Flight . | . . . . . . . . . . . . . . . Fastest Speed 50 | 50 120 120 120 120 120 120 115 115 115 115 115 115 120 120 Average Speed 125 | 118 125 120 120 120 120 163 122 115 115 115 115 125 141 143 Slowest Speed 400 | 120 190 120 120 120 120 330 156 115 115 115 130 196 200 400 Overloaded Moves . | . . . . . . . . . . . . . . . Propulsion Burnouts . | . . . . . . . . . . . . . . . Robots Hopped . | . . . . . . . . . . . . . . . Potential Cave-ins 3 | . . . . . . 3 . . . . . . . . Cave-ins Triggered . | . . . . . . . . . . . . . . . Exploration Rate (%) 54 | 4 74 44 8 69 37 40 42 74 87 71 67 24 96 85 Regions Visited 14 Branch Regions 9 Pre-discovered Areas 2 | . . . . 1 . . . . . 1 . . . . Known Exits Taken 8 | . . 1 . . . . 1 1 1 1 1 1 1 . Unknown Exits Taken 6 | 1 1 . 1 1 1 1 . . . . . . . . Scrap Searched 14 | . . . . . . . . 1 10 . 3 . . . Spaces Dug 153 | . 7 13 . . . 20 42 9 13 . 6 35 4 4 Terrain Destroyed 194 | . 20 16 . . . 43 44 9 13 . 6 35 4 4 Melee 122 | . . . . . . 10 41 9 13 . 6 35 4 4 Projectile 61 | . 9 16 . . . 33 3 . . . . . . . AOE 11 | . 11 . . . . . . . . . . . . . Terrain Rammed . | . . . . . . . . . . . . . . . Walls Destroyed . | . . . . . . . . . . . . . . . Machines Disabled . | . . . . . . . . . . . . . . . Actions | -11 -10 -9 -9 -9 -8 -8 -7 -7 -7 -7 -6 -6 -6 -6 --------- Run | Yrd Mat Mat Min Exi Min Mat Fac Low Low Dat Pro Fac Ext Cet Total 10904 | 121 662 494 54 251 119 636 2452 596 1237 98 612 1411 1907 254 Wait 875 | . 28 48 8 . . 62 237 12 30 . 7 121 290 32 Move 8652 | 88 509 388 41 246 103 425 2017 561 1165 98 576 1119 1135 181 Hop . | . . . . . . . . . . . . . . . Pick Up 113 | 7 15 4 . 1 1 25 28 1 4 . 2 9 14 2 Fast Attach 51 | 8 1 1 . . 2 5 9 . . . 3 10 6 6 Attach 50 | . 2 1 . . . 13 9 . 3 . 4 10 3 5 Detach 12 | . . . . . . 3 3 . 1 . 3 2 . . Swap 121 | 1 25 18 . . 2 8 19 2 3 . 2 14 22 5 Drop 130 | 4 9 6 . 4 4 25 37 1 2 . 2 10 19 7 Fire 217 | 13 73 28 5 . 7 57 18 . 12 . . . 4 . Melee 330 | . . . . . . 13 75 19 17 . 13 104 73 16 Ram . | . . . . . . . . . . . . . . . Kick . | . . . . . . . . . . . . . . . Crush . | . . . . . . . . . . . . . . . Escape Stasis 5 | . . . . . . . . . . . . . 5 . Rewire 348 | . . . . . . . . . . . . 12 336 . Trap . | . . . . . . . . . . . . . . . Miscellaneous . | . . . . . . . . . . . . . . . Route ------- -11/Scrapyard -10/Materials (discovered 3 exits: *Mat / [*Min x2]) -9/Materials (discovered 2 exits: *Mat / *Min) -9/Mines -9/Exiles -8/Mines -8/Materials (discovered 2 exits: *Fac / Sto) -7/Factory (discovered 2 exits: *Fac / *Low) -7/Lower Caves -7/Lower Caves (discovered 2 exits: *Fac / *Dat) -7/Data Miner -6/Proximity Caves -6/Factory (discovered 2 exits: *Fac / *Ext) -6/Extension (discovered 2 exits: *Fac / *Cet) -6/Cetus (discovered 2 exits: *Fac / [*Arc]) History --------- Turn | Location | Event 4 | -11/Scrapyard | Discovered new exit (range 16) 162 | -11/Scrapyard | Entered Materials 309 | -10/Materials | Build established: Mutant 526 | -10/Materials | Discovered new exit (range 11) 749 | -10/Materials | Discovered new exit (range 11) 825 | -10/Materials | Discovered new exit (range 16) 1109 | -10/Materials | Entered another Materials area 1109 | -9/Materials | Evolved 2 slots: Propulsion x1, Utility x1 1169 | -9/Materials | Build established: Scavenger-Mutant 1487 | -9/Materials | Identified exit to Mines 1497 | -9/Materials | Build established: Mutant 1573 | -9/Materials | Discovered new exit (range 15) 1757 | -9/Materials | Entered Mines 1790 | -9/Mines | Learned Materials terminal intel 1812 | -9/Mines | Met a Derelict bent on vengeance 1825 | -9/Mines | Deemed a non-threat by the Exiles lab entrance 1825 | -9/Mines | Discovered new exit (range 5) 1830 | -9/Mines | Entered Exiles 1860 | -9/Exiles | Met 8R-AWN 1880 | -9/Exiles | Met EX-HEX 1913 | -9/Exiles | Met EX-BIN 1929 | -9/Exiles | Aligned with FarCom system 1930 | -9/Exiles | Given EX-Vault access code 1958 | -9/Exiles | Opened EX-Vault 1968 | -9/Exiles | Found XL Autogun Array 1994 | -9/Exiles | Warned to stay clear of 0b10 Research branches 2010 | -9/Exiles | Exiles lab attacked by MAIN.C 2079 | -9/Exiles | Learned location of Zion (-6) 2112 | -9/Exiles | Discovered new exit (range 14) 2129 | -9/Exiles | Left Exiles lab with XL Autogun Array 2129 | -9/Exiles | Entered Mines 2275 | -8/Mines | Discovered new exit (range 6) 2283 | -8/Mines | Entered Materials 2283 | -8/Materials | Evolved 2 slots: Weapon x2 2284 | -8/Materials | Loaded intel: 12 terminal locations 2458 | -8/Materials | Lost 3 parts (2n1u) 2852 | -8/Materials | Identified exit to Storage 2922 | -8/Materials | Destroyed 7 combat bots 2939 | -8/Materials | Build established: Skirmisher 2962 | -8/Materials | Discovered new exit (range 10) 3211 | -8/Materials | Entered Factory 3211 | -7/Factory | Evolved 2 slots: Propulsion x1, Utility x1 3287 | -7/Factory | Repaired Lgt. Treads 4236 | -7/Factory | Build established: Gladiator 5679 | -7/Factory | Discovered new exit (range 10) 5697 | -7/Factory | Identified exit to Factory 5785 | -7/Factory | Discovered new exit (range 15) 6073 | -7/Factory | Repaired Arm. Huge Wheel 6284 | -7/Factory | Identified exit to Lower Caves 6286 | -7/Factory | Entered Lower Caves 6520 | -7/Lower Caves | Learned Factory machine intel 6556 | -7/Lower Caves | Attracted the attention of an 0b10 checkpoint 6617 | -7/Lower Caves | Build established: Mutant 6620 | -7/Lower Caves | Learned Factory security intel 6966 | -7/Lower Caves | Discovered new exit (range 9) 6995 | -7/Lower Caves | Identified exit to Lower Caves 7005 | -7/Lower Caves | Entered another Lower Caves area 7006 | -7/Lower Caves | Encountered a Warlord checkpoint 7016 | -7/Lower Caves | Learned Factory security intel 7124 | -7/Lower Caves | Discovered exit to Factory (range 7) 7158 | -7/Lower Caves | Learned Factory security intel 8335 | -7/Lower Caves | Discovered new exit (range 14) 8350 | -7/Lower Caves | Identified exit to Data Miner 8467 | -7/Lower Caves | Entered Data Miner 8467 | -7/Data Miner | Discovered new exit (range 6) 8490 | -7/Data Miner | Identified exit to Proximity Caves 8505 | -7/Data Miner | Met Data Miner 8530 | -7/Data Miner | Learned location of Section 7 (-2) 8530 | -7/Data Miner | Acquired the access code to Warlord's prototype stash 8550 | -7/Data Miner | Received God Mode back door access code from Data Miner 8580 | -7/Data Miner | Entered Proximity Caves 8793 | -6/Proximity Caves | Learned Factory stockpile data 9152 | -6/Proximity Caves | Learned 4 Factory zone layouts 9255 | -6/Proximity Caves | Discovered exit to Factory (range 13) 9289 | -6/Proximity Caves | System corruption reached 10% 9306 | -6/Proximity Caves | Entered Factory 9306 | -6/Factory | Evolved 2 slots: Utility x2 9310 | -6/Factory | Loaded intel: 285 machine locations 9545 | -6/Factory | Discovered new exit (range 14) 9612 | -6/Factory | Identified exit to Factory 9786 | -6/Factory | Spotted B-75 Beast 9977 | -6/Factory | Build established: Gladiator 10059 | -6/Factory | Destroyed 7 combat bots 10316 | -6/Factory | Garrison activated, responded to threat 10400 | -6/Factory | System corruption reached 10% 10430 | -6/Factory | Lost 4 parts (3u1w) 10463 | -6/Factory | Incoming investigation squad redirected 10588 | -6/Factory | Fabricated Lgt. Regenerative Plating (x1) 10724 | -6/Factory | Build established: Mutant 10725 | -6/Factory | Lost 3 parts (1n1u1w) 11154 | -6/Factory | Discovered new exit (range 15) 11176 | -6/Factory | Build established: Gladiator 11223 | -6/Factory | Identified exit to Extension 11224 | -6/Factory | Entered Extension 11458 | -6/Extension | Lost 3 parts (2n1w) 11509 | -6/Extension | Core integrity fell below 50% 11821 | -6/Extension | Rescued a captive Derelict 11954 | -6/Extension | Build established: Commander-Gladiator 12446 | -6/Extension | Spotted B-75 Beast 12453 | -6/Extension | Spotted B-75 Beast 12474 | -6/Extension | Destroyed B-75 Beast 12488 | -6/Extension | Allies destroyed B-75 Beast 12760 | -6/Extension | Rescued a captive Derelict 12889 | -6/Extension | Lost 4 allies 13102 | -6/Extension | Rescued a captive Derelict 13116 | -6/Extension | Rescued a captive Derelict 13635 | -6/Extension | Discovered new exit (range 21) 13636 | -6/Extension | Discovered exit to Factory (range 20) 13669 | -6/Extension | Identified exit to Cetus 13712 | -6/Extension | Entered Cetus 13712 | -6/Cetus | Accompanied by 12 allies 13723 | -6/Cetus | Spotted Cetus Guard 13724 | -6/Cetus | Spotted Cetus Guard 13726 | -6/Cetus | Spotted Cetus Guard 13730 | -6/Cetus | Spotted Cetus Guard 13751 | -6/Cetus | Allies destroyed Cetus Guard 13758 | -6/Cetus | Allies destroyed Cetus Guard 13761 | -6/Cetus | Allies destroyed Cetus Guard 13787 | -6/Cetus | Lost 6 allies 13940 | -6/Cetus | Discovered new exit (range 22) 13996 | -6/Cetus | Spotted Cetus Guard 13996 | -6/Cetus | Spotted Cetus Guard 13996 | -6/Cetus | Spotted Cetus Guard 13996 | -6/Cetus | Spotted Cetus Guard 13999 | -6/Cetus | Discovered exit to Factory (range 22) 14026 | -6/Cetus | Core integrity fell below 20% 14039 | -6/Cetus | Allies destroyed Cetus Guard 14065 | -6/Cetus | Allies destroyed Cetus Guard 14065 | -6/Cetus | Destroyed by Cetus Guard with Advanced Variable Charge Gun Last Messages --------------- 14041_ Cetus Guard suffers critical hit (Smash). 14041_ Destroyed Quantum Reactor. 14041_ Cetus Guard system corrupted by crushing effect. 14043_ Penetrated by Slug. 14043_ Critical hit (Destroy). 14043_ Penetrated by Slug. 14049_ NU-B6R(b) destroyed. 14050_ Slug penetrates Wall. 14052_ Cetus Guard Prototype Ballistic Gun severed. 14052_ Lgt. Regenerative Plating destroyed. 14056_ System corrupted: Matter fused (-9). 14059_ Penetrated by Slug. 14059_ Centrium Medium Armor Plating destroyed. 14061_ Acquired 28 matter. 14062_ Penetrated by Slug. 14062_ Critical hit (Destroy). 14062_ Carbon-fiber Leg destroyed. 14065_ Cetus Guard destroyed. Map ----- +----------------------------------------------------+ | | | | | | | | | | | | | | | | | | | | | | | | | | | | | | | ?????????????????????????????????????????? | | ?????????????????????????????????????????? | | ?????????????????????????###?????????????? | | ???????????????????????###;#?????????????? | | ???????????????????????# #?????????????? | | ???????????????????????# < #?????????????? | | ???????????????????????# #?????????????? | | ???????????????????????# #?????????????? | | ??????????????????????##!=[##????????????? | | ??????????????????????# %!% #????????????? | | ??????????????????????#Y*@%/#????????????? | | ??????????????????????#[%=*%#????????????? | | ??????????????????????##[%[;#????????????? | | ?????????????????????### *##????????????? | | ?????????????????????# ; ; ????????????? | | ?????????????????????# # ; #??????????? | | ????????????????????# #; g# ##??????????? | | ???????????????????# ### ###???????????? | | ??????????????????# ???;%= #?????????????? | | ??????????????????#???##/ #?????????????? | | ???????????????????????# #?????????????? | | ???????????????????????# #?????????????? | | ???????????????????????# #?????????????? | | ???????????????????????# ;?????????????? | | ???????????????????????# ##????????????? | | ???????????????????????# !#?????????????? | | ???????????????????????# %=?????????????? | | ???????????????????????; !=#?????????????? | | ???????????????????????# !%#?????????????? | | ???????????????????????#% #?????????????? | | ???????????????????????# #?????????????? | | ######?????????????????# #?????????????? | | """""###???????????????# #?????????????? | | " " #""???????????????# #?????????????? | | """""#"######??????????# #?????????????? | +----------------------------------------------------+ Best States ------------- Heat Dissipation 61 Energy Generation 25 Energy Capacity 350 Matter Stores 300 Matter Capacity 300 Sight Range 22 Robot Scan Range 15 Terrain Scan Density 10 Jamming Range 12 Armor Coverage 375 Melee Speed Boost 20 Evasion (%) 55 Melee Accuracy 8 Armor Integrity Analysis 30 Recoil Reduction 4 Force Boost 20 Item Schematics ----------------- Imp. Medium Armor Plating | -8/Materials | Scanalyzed Lgt. Nuclear Core | -8/Materials | Scanalyzed Lgt. Armored Exoskeleton | -7/Factory | Hacked Arm. Huge Wheel | -7/Factory | Scanalyzed Cld. Pulse Rifle | -7/Factory | Scanalyzed Force Booster | -7/Factory | Scanalyzed Greatsword | -7/Factory | Scanalyzed Combat Drone Bay | -7/Data Miner | Free Lgt. Regenerative Plating | -7/Data Miner | Free Biomechanical Wings | -7/Data Miner | Free Gravity Neutralizer | -7/Data Miner | Free Force Rifle | -7/Data Miner | Free Arm. Medium Treads | -7/Data Miner | Free Imp. Thermal Shield | -7/Data Miner | Free Wave Gun | -7/Data Miner | Free Thermic Laser | -7/Data Miner | Free Adv. Recoil Stabilizer | -7/Data Miner | Free Imp. Plasma Cutter | -7/Data Miner | Free Adv. Target Analyzer | -7/Data Miner | Free Imp. Remote Force Field | -7/Data Miner | Free Power Sword | -6/Factory | Scanalyzed Imp. Carbon-fiber Leg | -6/Factory | Scanalyzed Robot Schematics ------------------ B-48 Gladiator | -7/Data Miner | Free Y-54 Guardian | -7/Data Miner | Free M-22 Extractor | -7/Data Miner | Free M-14 Sweeper | -7/Data Miner | Free I-47 Archangel | -7/Data Miner | Free B-60 Warrior | -7/Data Miner | Free A-15 Conveyor | -7/Data Miner | Free Fabricated ------------ Lgt. Regenerative Plating | x1 | -6/Factory Repaired ---------- Lgt. Treads | 34% | -7/Factory Arm. Huge Wheel | 69% | -7/Factory Alien Tech Used ----------------- None Achievements -------------- None Challenges ------------ None Game ------ Seed SupercompositeReinforcedBox Manual? 0 Play Time 02:16:42 Cumulative 214.6 hours Start 2025.08.02 @ 12:58:45 End 2025.08.02 @ 15:20:51 Sessions 1 Manual Loads 0 Difficulty Rogue Special Mode None Game No. 150 Rogue 150 Adventurer 0 Explorer 0 Win Type - Total 2 Types 2/0/0/0/0/0/0/0/0/0 Lore% 66 Gallery% 62 Achievement% 54 Wizard Run 0 Options --------- Layout 1 ASCII 0 Keyboard 0 Movement Mouse Keybinds 0 Fullscreen 1 Font 32/SmallcapsGlow Map View 50x35 Zoom Use 0% Tactical HUD 1 Map Filters NONE Filters NONE Steam 1 RUN: ee8ddc12-ff93-42f7-a01d-dabdc8b47c8b